Workbook

Sheet Ski Male
M2: Judges
M3: Judge 1 | N3: Martin Carr
M4: Judge 2 | N4: Rob Taylor
B5: Ski Male | M5: Judge 3 | N5: Tom Guilding
M6: No of Judges: | N6: 3
B7: Finals | F7: Run 1 | I7: Run 1 | J7: Run 2 | M7: Run 2 | N7: Best | O7: Position
B8: Bib | C8: Name | D8: Stance | E8: Category | F8: Judge 1 | G8: Judge 2 | H8: Judge 3 | I8: Average | J8: Judge 1 | K8: Judge2 | L8: Judge3 | M8: Average | N8: Score | O8: Age | P8: Overall
A9: 1 | B9: 71 | C9: Chris McCormick | D9: Clockwise | E9: U21 | F9: 91 | G9: 82 | H9: 84 | I9: =(F9+G9+H9)/$N$6 -> 85.66666667 | J9: 10 | K9: 10 | L9: 10 | M9: =(J9+K9+L9)/$N$6 -> 10 | N9: =MAX(I9,M9) -> 85.66666667 | P9: =RANK(N9,$N$9:$N$20) -> 1
A10: 2 | B10: 255 | C10: Justin Taylor-Tipton | D10: Anti-clockwise | E10: U21 | F10: 79 | G10: 80 | H10: 83 | I10: =(F10+G10+H10)/$N$6 -> 80.66666667 | J10: 86 | K10: 85 | L10: 83 | M10: =(J10+K10+L10)/$N$6 -> 84.66666667 | N10: =MAX(I10,M10) -> 84.66666667 | P10: =RANK(N10,$N$9:$N$20) -> 2
A11: 3 | B11: 248 | C11: Haydyn Fiori | D11: Clockwise | E11: U21 | F11: 85 | G11: 83 | H11: 85 | I11: =(F11+G11+H11)/$N$6 -> 84.33333333 | J11: 80 | K11: 81 | L11: 81 | M11: =(J11+K11+L11)/$N$6 -> 80.66666667 | N11: =MAX(I11,M11) -> 84.33333333 | P11: =RANK(N11,$N$9:$N$20) -> 3
A12: 4 | B12: 247 | C12: Thomas Greenway | D12: Anti-clockwise | E12: U21 | F12: 80 | G12: 78 | H12: 80 | I12: =(F12+G12+H12)/$N$6 -> 79.33333333 | J12: 76 | K12: 75 | L12: 80 | M12: =(J12+K12+L12)/$N$6 -> 77 | N12: =MAX(I12,M12) -> 79.33333333 | P12: =RANK(N12,$N$9:$N$20) -> 4
A13: 5 | B13: 249 | C13: Tom Smith | D13: Anti-clockwise | E13: Open | F13: 72 | G13: 70 | H13: 65 | I13: =(F13+G13+H13)/$N$6 -> 69 | J13: 76 | K13: 85 | L13: 74 | M13: =(J13+K13+L13)/$N$6 -> 78.33333333 | N13: =MAX(I13,M13) -> 78.33333333 | P13: =RANK(N13,$N$9:$N$20) -> 5
A14: 6 | B14: 63 | C14: Edward Hallett | D14: Anti-clockwise | E14: U21 | F14: 74 | G14: 60 | H14: 69 | I14: =(F14+G14+H14)/$N$6 -> 67.66666667 | J14: 78 | K14: 68 | L14: 70 | M14: =(J14+K14+L14)/$N$6 -> 72 | N14: =MAX(I14,M14) -> 72 | P14: =RANK(N14,$N$9:$N$20) -> 6
A15: 7 | B15: 223 | C15: Bradley FRY | D15: Anti-clockwise | E15: U16 | F15: 68 | G15: 62 | H15: 62 | I15: =(F15+G15+H15)/$N$6 -> 64 | J15: 71 | K15: 70 | L15: 64 | M15: =(J15+K15+L15)/$N$6 -> 68.33333333 | N15: =MAX(I15,M15) -> 68.33333333 | P15: =RANK(N15,$N$9:$N$20) -> 7
A16: 8 | B16: 252 | C16: Row Emery | D16: Anti-clockwise | E16: Open | F16: 70 | G16: 65 | H16: 60 | I16: =(F16+G16+H16)/$N$6 -> 65 | J16: 75 | K16: 75 | L16: 52 | M16: =(J16+K16+L16)/$N$6 -> 67.33333333 | N16: =MAX(I16,M16) -> 67.33333333 | P16: =RANK(N16,$N$9:$N$20) -> 8
A17: 9 | B17: 241 | C17: Sam Gaskin | D17: Anti-clockwise | E17: U21 | F17: 64 | G17: 60 | H17: 51 | I17: =(F17+G17+H17)/$N$6 -> 58.33333333 | J17: 63 | K17: 60 | L17: 51 | M17: =(J17+K17+L17)/$N$6 -> 58 | N17: =MAX(I17,M17) -> 58.33333333 | P17: =RANK(N17,$N$9:$N$20) -> 9
A18: 11 | B18: 242 | C18: Teddy Halket | D18: Anti-clockwise | E18: U16 | F18: 10 | G18: 10 | H18: 10 | I18: =(F18+G18+H18)/$N$6 -> 10 | J18: 60 | K18: 62 | L18: 50 | M18: =(J18+K18+L18)/$N$6 -> 57.33333333 | N18: =MAX(I18,M18) -> 57.33333333 | P18: =RANK(N18,$N$9:$N$20) -> 10
A19: 10 | B19: 200 | C19: Jay Hebblethwaite | D19: Anti-clockwise | E19: U16 | F19: 61 | G19: 50 | H19: 44 | I19: =(F19+G19+H19)/$N$6 -> 51.66666667 | J19: 65 | K19: 60 | L19: 45 | M19: =(J19+K19+L19)/$N$6 -> 56.66666667 | N19: =MAX(I19,M19) -> 56.66666667 | P19: =RANK(N19,$N$9:$N$20) -> 11
A20: 12 | B20: 209 | C20: Arthur Holmes | D20: Anti-clockwise | E20: U21 | F20: 56 | G20: 40 | H20: 45 | I20: =(F20+G20+H20)/$N$6 -> 47 | J20: 59 | K20: 46 | L20: 47 | M20: =(J20+K20+L20)/$N$6 -> 50.66666667 | N20: =MAX(I20,M20) -> 50.66666667 | P20: =RANK(N20,$N$9:$N$20) -> 12
B23: Qualifiers | F23: Run 1 | I23: Run 1 | J23: Run 2 | M23: Run 2 | N23: Best | O23: Position
B24: Bib | C24: Name | D24: Stance | E24: Category | F24: Judge 1 | G24: Judge 2 | H24: Judge 3 | I24: Average | J24: Judge 1 | K24: Judge2 | L24: Judge3 | M24: Average | N24: Score | O24: Age | P24: Overall
B25: 210 | C25: Palmer Parish | D25: Anti-clockwise | E25: U12 | F25: 40 | G25: 40 | H25: 42 | I25: =(F25+G25+H25)/$N$6 -> 40.66666667 | J25: 40 | K25: 35 | L25: 39 | M25: =(J25+K25+L25)/$N$6 -> 38 | N25: =MAX(I25,M25) -> 40.66666667 | O25: =RANK(N25,$N$25:$N$29) -> 2 | P25: =RANK(N25,$N$25:$N$49) -> 19
B26: 203 | C26: Callum Smith | D26: Anti-clockwise | E26: U12 | F26: 10 | G26: 4 | H26: 10 | I26: 8 | J26: 35 | K26: 32 | L26: 29 | M26: 32 | N26: 32 | O26: =RANK(N26,$N$25:$N$29) -> 5 | P26: 24
B27: 246 | C27: Fynnlay Loupis | D27: Clockwise | E27: U12 | F27: 50 | G27: 58 | H27: 49 | I27: 52.33333333 | J27: 10 | K27: 7 | L27: 10 | M27: 9 | N27: 52.33333333 | O27: =RANK(N27,$N$25:$N$29) -> 1 | P27: 16
B28: 236 | C28: Deja Parker | D28: Anti-clockwise | E28: U12 | F28: 30 | G28: 27 | H28: 33 | I28: 30 | J28: 38 | K28: 43 | L28: 34 | M28: 38.33333333 | N28: 38.33333333 | O28: =RANK(N28,$N$25:$N$29) -> 4 | P28: 22
B29: 244 | C29: Paulie Loupis | D29: Anti-clockwise | E29: U12 | F29: 10 | G29: 8 | H29: 10 | I29: 9.333333333 | J29: 40 | K29: 41 | L29: 40 | M29: 40.33333333 | N29: 40.33333333 | O29: =RANK(N29,$N$25:$N$29) -> 3 | P29: 20
B30: 227 | C30: Luke Burke | D30: Anti-clockwise | E30: U16 | F30: 10 | G30: 4 | H30: 10 | I30: 8 | J30: 45 | K30: 52 | L30: 41 | M30: 46 | N30: 46 | O30: =RANK(N30,$N$30:$N$38) -> 6 | P30: 17
B31: 219 | C31: Kieran KERR | D31: Anti-clockwise | E31: U16 | F31: 48 | G31: 44 | H31: 29 | I31: 40.33333333 | J31: 51 | K31: 38 | L31: 27 | M31: 38.66666667 | N31: 40.33333333 | O31: 8 | P31: 20
B32: 225 | C32: Tyler Nicholls-Stubbington | D32: Anti-clockwise | E32: U16 | F32: 59 | G32: 63 | H32: 46 | I32: 56 | J32: 50 | K32: 40 | L32: 44 | M32: 44.66666667 | N32: 56 | O32: 4 | P32: 13
C33: Oscar Louth | E33: U16 | I33: 0 | M33: 0 | N33: 0 | O33: 9 | P33: 25
B34: 200 | C34: Jay Hebblethwaite | D34: Anti-clockwise | E34: U16 | F34: 64 | G34: 69 | H34: 52 | I34: 61.66666667 | J34: 60 | K34: 70 | L34: 54 | M34: 61.33333333 | N34: 61.66666667 | O34: 2 | P34: 10
B35: 242 | C35: Teddy Halket | D35: Anti-clockwise | E35: U16 | F35: 60 | G35: 66 | H35: 57 | I35: 61 | J35: 55 | K35: 50 | L35: 40 | M35: 48.33333333 | N35: 61 | O35: 3 | P35: 11
B36: 223 | C36: Bradley FRY | D36: Anti-clockwise | E36: U16 | F36: 68 | G36: 75 | H36: 62 | I36: 68.33333333 | J36: 10 | K36: 8 | L36: 10 | M36: 9.333333333 | N36: 68.33333333 | O36: 1 | P36: 7
B37: 234 | C37: Alfie Sadler | D37: Anti-clockwise | E37: U16 | F37: 40 | G37: 32 | H37: 36 | I37: 36 | J37: 39 | K37: 48 | L37: 36 | M37: 41 | N37: 41 | O37: 7 | P37: 18
B38: 208 | C38: Cameron Kirby | D38: Anti-clockwise | E38: U16 | F38: 62 | G38: 55 | H38: 49 | I38: 55.33333333 | J38: 10 | K38: 8 | L38: 10 | M38: 9.333333333 | N38: 55.33333333 | O38: 5 | P38: 14
B39: 207 | C39: Mason Flannery | D39: Anti-clockwise | E39: U21 | F39: 58 | G39: 52 | H39: 48 | I39: 52.66666667 | J39: 60 | K39: 53 | L39: 47 | M39: 53.33333333 | N39: 53.33333333 | O39: =RANK(N39,$N$39:$N$47) -> 8 | P39: 15
B40: 247 | C40: Thomas Greenway | D40: Anti-clockwise | E40: U21 | F40: 74 | G40: 58 | H40: 51 | I40: 61 | J40: 82 | K40: 80 | L40: 70 | M40: 77.33333333 | N40: 77.33333333 | O40: 4 | P40: 4
B41: 255 | C41: Justin Taylor-Tipton | D41: Anti-clockwise | E41: U21 | F41: 79 | G41: 78 | H41: 72 | I41: 76.33333333 | J41: 84 | K41: 82 | L41: 70 | M41: 78.66666667 | N41: 78.66666667 | O41: 2 | P41: 2
B42: 209 | C42: Arthur Holmes | D42: Anti-clockwise | E42: U21 | F42: 48 | G42: 63 | H42: 51 | I42: 54 | J42: 59 | K42: 64 | L42: 50 | M42: 57.66666667 | N42: 57.66666667 | O42: 7 | P42: 12
B43: 71 | C43: Chris McCormick | D43: Clockwise | E43: U21 | F43: 85 | G43: 87 | H43: 81 | I43: 84.33333333 | J43: 90 | K43: 85 | L43: 79 | M43: 84.66666667 | N43: 84.66666667 | O43: 1 | P43: 1
B44: 248 | C44: Haydyn Fiori | D44: Clockwise | E44: U21 | F44: 10 | G44: 7 | H44: 10 | I44: 9 | J44: 81 | K44: 84 | L44: 69 | M44: 78 | N44: 78 | O44: 3 | P44: 3
B45: 63 | C45: Edward Hallett | D45: Anti-clockwise | E45: U21 | F45: 77 | G45: 65 | H45: 59 | I45: 67 | J45: 79 | K45: 71 | L45: 65 | M45: 71.66666667 | N45: 71.66666667 | O45: 5 | P45: 6
B46: 241 | C46: Sam Gaskin | D46: Anti-clockwise | E46: U21 | F46: 70 | G46: 68 | H46: 50 | I46: 62.66666667 | J46: 72 | K46: 65 | L46: 50 | M46: 62.33333333 | N46: 62.66666667 | O46: 6 | P46: 9
B47: 204 | C47: Isaac Evans-Bowhill | D47: Anti-clockwise | E47: U21 | I47: 0 | J47: 50 | K47: 30 | L47: 29 | M47: =(J47+K47+L47)/$N$6 -> 36.33333333 | N47: 36.33333333 | O47: 9 | P47: 23
B48: 252 | C48: Row Emery | D48: Anti-clockwise | E48: Open | F48: 69 | G48: 73 | H48: 61 | I48: 67.66666667 | J48: 50 | K48: 30 | L48: 29 | M48: =(J48+K48+L48)/$N$6 -> 36.33333333 | N48: 67.66666667 | O48: =RANK(N48,$N$48:$N$49) -> 2 | P48: 8 | R48: =27+12+7+24 -> 70
B49: 249 | C49: Tom Smith | D49: Anti-clockwise | E49: Open | F49: 80 | G49: 76 | H49: 69 | I49: 75 | J49: 79 | K49: 65 | L49: 60 | M49: 68 | N49: 75 | O49: =RANK(N49,$N$48:$N$49) -> 1 | P49: 5

Sheet Ski Female
M2: Judges
M3: Judge 1 | N3: Robby T
M4: Judge 2 | N4: Tom Guilding
B5: Ski Female | M5: Judge 3 | N5: Martin Carr
M6: No of Judges: | N6: 3
B7: Finals | F7: Run 1 | I7: Run 1 | J7: Run 2 | M7: Run 2 | N7: Best | O7: Position
B8: Bib | C8: Name | D8: Stance | E8: Category | F8: Judge 1 | G8: Judge 2 | H8: Judge 3 | I8: Average | J8: Judge 1 | K8: Judge2 | L8: Judge3 | M8: Average | N8: Score | O8: Age | P8: Overall
A9: 1 | B9: 240 | C9: Kirsty Muir | D9: Anti-clockwise | E9: U16 | F9: 70 | G9: 80 | H9: 60 | I9: =(F9+G9+H9)/$N$6 -> 70 | J9: 69 | K9: 80 | L9: 60 | M9: =(J9+K9+L9)/$N$6 -> 69.66666667 | N9: =MAX(I9,M9) -> 70 | P9: =RANK(N9,$N$9:$N$14) -> 1
A10: 4 | B10: 226 | C10: Olivia Burke | D10: Anti-clockwise | E10: U16 | F10: 56 | G10: 54 | H10: 50 | I10: =(F10+G10+H10)/$N$6 -> 53.33333333 | J10: 10 | K10: 10 | L10: 10 | M10: =(J10+K10+L10)/$N$6 -> 10 | N10: =MAX(I10,M10) -> 53.33333333 | P10: =RANK(N10,$N$9:$N$14) -> 2
A11: 2 | B11: 146 | C11: Alexandra (Lex) Brown | D11: Anti-clockwise | E11: Open | F11: 49 | G11: 58 | H11: 45 | I11: =(F11+G11+H11)/$N$6 -> 50.66666667 | J11: 40 | K11: 50 | L11: 42 | M11: =(J11+K11+L11)/$N$6 -> 44 | N11: =MAX(I11,M11) -> 50.66666667 | P11: =RANK(N11,$N$9:$N$14) -> 3
A12: 5 | B12: 269 | C12: Ella Taylor-Tipton | D12: Clockwise | E12: U16 | F12: 48 | G12: 54 | H12: 49 | I12: =(F12+G12+H12)/$N$6 -> 50.33333333 | J12: 45 | K12: 40 | L12: 45 | M12: =(J12+K12+L12)/$N$6 -> 43.33333333 | N12: =MAX(I12,M12) -> 50.33333333 | P12: =RANK(N12,$N$9:$N$14) -> 4
A13: 3 | B13: 206 | C13: Fiona Muir | D13: Anti-clockwise | E13: U12 | F13: 10 | G13: 10 | H13: 10 | I13: =(F13+G13+H13)/$N$6 -> 10 | J13: 50 | K13: 48 | L13: 47 | M13: =(J13+K13+L13)/$N$6 -> 48.33333333 | N13: =MAX(I13,M13) -> 48.33333333 | P13: =RANK(N13,$N$9:$N$14) -> 5
A14: 6 | B14: 239 | C14: Alexandra (Lexi) Rowlands | D14: Anti-clockwise | E14: U16 | F14: 40 | G14: 37 | H14: 39 | I14: =(F14+G14+H14)/$N$6 -> 38.66666667 | J14: 42 | K14: 44 | L14: 41 | M14: =(J14+K14+L14)/$N$6 -> 42.33333333 | N14: =MAX(I14,M14) -> 42.33333333 | P14: =RANK(N14,$N$9:$N$14) -> 6
B16: Qualifiers | F16: Run 1 | I16: Run 1 | J16: Run 2 | M16: Run 2 | N16: Best | O16: Position
B17: Bib | C17: Name | D17: Stance | E17: Category | F17: Judge 1 | G17: Judge 2 | H17: Judge 3 | I17: Average | J17: Judge 1 | K17: Judge2 | L17: Judge3 | M17: Average | N17: Score | O17: Age | P17: Overall
B18: 206 | C18: Fiona Muir | D18: Anti-clockwise | E18: U12 | F18: 58 | G18: 63 | H18: 51 | I18: =(F18+G18+H18)/$N$6 -> 57.33333333 | J18: 61 | K18: 70 | L18: 57 | M18: =(J18+K18+L18)/$N$6 -> 62.66666667 | N18: =MAX(I18,M18) -> 62.66666667 | O18: =RANK(N18,$N$18) -> 1 | P18: =RANK(N18,$N$18:$N$25) -> 3
B19: 217 | C19: Amy Clayton | D19: Anti-clockwise | E19: U16 | F19: 41 | G19: 48 | H19: 39 | I19: =(F19+G19+H19)/$N$6 -> 42.66666667 | J19: 50 | K19: 43 | L19: 40 | M19: =(J19+K19+L19)/$N$6 -> 44.33333333 | N19: =MAX(I19,M19) -> 44.33333333 | O19: =RANK(N19,$N$19:$N$24) -> 6 | P19: 8
B20: 243 | C20: Lara Shaw | D20: Anti-clockwise | E20: U16 | F20: 10 | G20: 2 | H20: 10 | I20: 7.333333333 | J20: 58 | K20: 53 | L20: 37 | M20: 49.33333333 | N20: 49.33333333 | O20: =RANK(N20,$N$19:$N$24) -> 5 | P20: 7
B21: 240 | C21: Kirsty Muir | D21: Anti-clockwise | E21: U16 | F21: 71 | G21: 82 | H21: 65 | I21: 72.66666667 | J21: 79 | K21: 80 | L21: 72 | M21: 77 | N21: 77 | O21: 1 | P21: 1
B22: 226 | C22: Olivia Burke | D22: Anti-clockwise | E22: U16 | F22: 64 | G22: 59 | H22: 40 | I22: 54.33333333 | J22: 66 | K22: 62 | L22: 49 | M22: 59 | N22: 59 | O22: 2 | P22: 4
B23: 239 | C23: Alexandra (Lexi) Rowlands | D23: Anti-clockwise | E23: U16 | F23: 59 | G23: 55 | H23: 48 | I23: 54 | J23: 60 | K23: 63 | L23: 50 | M23: 57.66666667 | N23: 57.66666667 | O23: 4 | P23: 6
B24: 269 | C24: Ella Taylor-Tipton | D24: Clockwise | E24: U16 | F24: 54 | G24: 66 | H24: 57 | I24: 59 | J24: 40 | K24: 50 | L24: 40 | M24: 43.33333333 | N24: 59 | O24: 2 | P24: 4
B25: 146 | C25: Alexandra (Lex) Brown | D25: Anti-clockwise | E25: Open | F25: 68 | G25: 77 | H25: 59 | I25: 68 | J25: 50 | K25: 60 | L25: 47 | M25: 52.33333333 | N25: 68 | O25: =RANK(N25,$N$25) -> 1 | P25: =RANK(N25,$N$18:$N$25) -> 2

Sheet SB Male
M2: Judges
M3: Judge 1 | N3: Calum Paton
M4: Judge 2 | N4: Gareth Vogan
B5: Snowboard Male | M5: Judge 3 | N5: Conor Browne
M6: No of Judges: | N6: 3
B7: Finals | F7: Run 1 | I7: Run 1 | J7: Run 2 | M7: Run 2 | N7: Best | O7: Position
B8: Bib | C8: Name | D8: Stance | E8: Category | F8: Judge 1 | G8: Judge 2 | H8: Judge 3 | I8: Average | J8: Judge 1 | K8: Judge2 | L8: Judge3 | M8: Average | N8: Score | O8: Age | P8: Overall
A9: 3 | B9: 220 | C9: Lewis Moore | E9: U16 | F9: 67 | G9: 69 | H9: 68 | I9: =(F9+G9+H9)/$N$6 -> 68 | J9: 83 | K9: 81 | L9: 82 | M9: =(J9+K9+L9)/$N$6 -> 82 | N9: =MAX(I9,M9) -> 82 | P9: =RANK(N9,$N$9:$N$20) -> 1
A10: 2 | B10: 212 | C10: Billy Cockrell | E10: U21 | F10: 69 | G10: 71 | H10: 70 | I10: 70 | J10: 77 | K10: 76 | L10: 75 | M10: 76 | N10: 76 | P10: 2
A11: 1 | B11: 230 | C11: Josh Cook | E11: U21 | F11: 70 | G11: 72 | H11: 72 | I11: 71.33333333 | J11: 15 | K11: 20 | L11: 15 | M11: 16.66666667 | N11: 71.33333333 | P11: 3
A12: 9 | B12: 224 | C12: Liam Tynan | E12: U16 | F12: 56 | G12: 55 | H12: 54 | I12: 55 | J12: 68 | K12: 70 | L12: 69 | M12: 69 | N12: 69 | P12: 4
A13: 7 | B13: 238 | C13: Max Jorge | E13: U16 | F13: 47 | G13: 49 | H13: 46 | I13: 47.33333333 | J13: 43 | K13: 45 | L13: 41 | M13: 43 | N13: 47.33333333 | P13: 5
A14: 6 | B14: 216 | C14: Lewis Hopkinson | E14: U16 | F14: 19 | G14: 18 | H14: 18 | I14: 18.33333333 | J14: 45 | K14: 47 | L14: 45 | M14: 45.66666667 | N14: 45.66666667 | P14: 6
A15: 5 | B15: 213 | C15: Edward Livesey | E15: U16 | F15: 43 | G15: 44 | H15: 43 | I15: 43.33333333 | J15: 40 | K15: 42 | L15: 40 | M15: 40.66666667 | N15: 43.33333333 | P15: 7
A16: 8 | B16: 229 | C16: Stephen Smith | E16: U16 | F16: 17 | G16: 16 | H16: 16 | I16: 16.33333333 | J16: 35 | K16: 32 | L16: 31 | M16: 32.66666667 | N16: 32.66666667 | P16: 8
A17: 4 | B17: 232 | C17: Harvey Causer | E17: U21 | F17: 20 | G17: 19 | H17: 17 | I17: 18.66666667 | J17: 33 | K17: 30 | L17: 30 | M17: 31 | N17: 31 | P17: 9
A18: 11 | B18: 211 | C18: Nate Hopkinson | E18: U16 | F18: 21 | G18: 22 | H18: 21 | I18: 21.33333333 | J18: 19 | K18: 20 | L18: 18 | M18: 19 | N18: 21.33333333 | P18: 10
A19: 12 | B19: 330 | C19: Stephen French | E19: U16 | F19: 16 | G19: 13 | H19: 14 | I19: 14.33333333 | J19: 15 | K19: 12 | L19: 13 | M19: 13.33333333 | N19: 14.33333333 | P19: 11
A20: 10 | B20: 233 | C20: William Ashworth | E20: U16 | F20: 11 | G20: 10 | H20: 9 | I20: 10 | J20: 9 | K20: 9 | L20: 8 | M20: 8.666666667 | N20: 10 | P20: 12
B23: Qualifiers | F23: Run 1 | I23: Run 1 | J23: Run 2 | M23: Run 2 | N23: Best | O23: Position
B24: Bib | C24: Name | D24: Stance | E24: Category | F24: Judge 1 | G24: Judge 2 | H24: Judge 3 | I24: Average | J24: Judge 1 | K24: Judge2 | L24: Judge3 | M24: Average | N24: Score | O24: Age | P24: Overall
B25: 223 | C25: Lenny Fenning | E25: U12 | F25: 20 | G25: 20 | H25: 23 | I25: =(F25+G25+H25)/$N$6 -> 21 | J25: 4 | K25: 4 | L25: 4 | M25: =(J25+K25+L25)/$N$6 -> 4 | N25: =MAX(I25,M25) -> 21 | O25: =RANK(N25,$N$25:$N$31) -> 1 | P25: =RANK(N25,$N$25:$N$52) -> 13
B26: 203 | C26: Rauf Allen | E26: U12 | F26: 19 | G26: 20 | H26: 21 | I26: =(F26+G26+H26)/$N$6 -> 20 | J26: 13 | K26: 16 | L26: 16 | M26: =(J26+K26+L26)/$N$6 -> 15 | N26: =MAX(I26,M26) -> 20 | O26: =RANK(N26,$N$25:$N$31) -> 2 | P26: =RANK(N26,$N$25:$N$52) -> 14
B27: 219 | C27: Oliver Cresswell | E27: U12 | F27: 15 | G27: 16 | H27: 16 | I27: =(F27+G27+H27)/$N$6 -> 15.66666667 | J27: 7 | K27: 7 | L27: 8 | M27: =(J27+K27+L27)/$N$6 -> 7.333333333 | N27: =MAX(I27,M27) -> 15.66666667 | O27: =RANK(N27,$N$25:$N$31) -> 3 | P27: =RANK(N27,$N$25:$N$52) -> 18
B28: 205 | C28: Ollie Wilson | E28: U12 | F28: 15 | G28: 15 | H28: 14 | I28: =(F28+G28+H28)/$N$6 -> 14.66666667 | J28: 2 | K28: 2 | L28: 2 | M28: =(J28+K28+L28)/$N$6 -> 2 | N28: =MAX(I28,M28) -> 14.66666667 | O28: =RANK(N28,$N$25:$N$31) -> 4 | P28: =RANK(N28,$N$25:$N$52) -> 19
B29: 225 | C29: Bradley Baker | E29: U12 | F29: 12 | G29: 13 | H29: 11 | I29: =(F29+G29+H29)/$N$6 -> 12 | J29: 3 | K29: 3 | L29: 2 | M29: =(J29+K29+L29)/$N$6 -> 2.666666667 | N29: =MAX(I29,M29) -> 12 | O29: =RANK(N29,$N$25:$N$31) -> 5 | P29: =RANK(N29,$N$25:$N$52) -> 21
B30: 227 | C30: Logan Harvey-Smith | E30: U12 | F30: 10 | G30: 10 | H30: 9 | I30: =(F30+G30+H30)/$N$6 -> 9.666666667 | J30: 4 | K30: 3 | L30: 3 | M30: =(J30+K30+L30)/$N$6 -> 3.333333333 | N30: =MAX(I30,M30) -> 9.666666667 | O30: =RANK(N30,$N$25:$N$31) -> 6 | P30: =RANK(N30,$N$25:$N$52) -> 23
B31: 209 | C31: Charlie Turner | E31: U12 | F31: 4 | G31: 4 | H31: 4 | I31: =(F31+G31+H31)/$N$6 -> 4 | J31: 5 | K31: 5 | L31: 3 | M31: =(J31+K31+L31)/$N$6 -> 4.333333333 | N31: =MAX(I31,M31) -> 4.333333333 | O31: =RANK(N31,$N$25:$N$31) -> 7 | P31: =RANK(N31,$N$25:$N$52) -> 25
B32: 220 | C32: Lewis Moore | E32: U16 | F32: 26 | G32: 27 | H32: 26 | I32: =(F32+G32+H32)/$N$6 -> 26.33333333 | J32: 55 | K32: 55 | L32: 52 | M32: =(J32+K32+L32)/$N$6 -> 54 | N32: =MAX(I32,M32) -> 54 | O32: =RANK(N32,$N$32:$N$47) -> 1 | P32: =RANK(N32,$N$25:$N$52) -> 3
B33: 213 | C33: Edward Livesey | E33: U16 | F33: 31 | G33: 33 | H33: 29 | I33: =(F33+G33+H33)/$N$6 -> 31 | J33: 40 | K33: 40 | L33: 40 | M33: =(J33+K33+L33)/$N$6 -> 40 | N33: =MAX(I33,M33) -> 40 | O33: =RANK(N33,$N$32:$N$47) -> 2 | P33: =RANK(N33,$N$25:$N$52) -> 5
B34: 216 | C34: Lewis Hopkinson | E34: U16 | F34: 37 | G34: 37 | H34: 36 | I34: =(F34+G34+H34)/$N$6 -> 36.66666667 | J34: 39 | K34: 39 | L34: 39 | M34: =(J34+K34+L34)/$N$6 -> 39 | N34: =MAX(I34,M34) -> 39 | O34: =RANK(N34,$N$32:$N$47) -> 3 | P34: =RANK(N34,$N$25:$N$52) -> 6
B35: 238 | C35: Max Jorge | E35: U16 | F35: 38 | G35: 39 | H35: 38 | I35: =(F35+G35+H35)/$N$6 -> 38.33333333 | J35: 29 | K35: 30 | L35: 30 | M35: =(J35+K35+L35)/$N$6 -> 29.66666667 | N35: =MAX(I35,M35) -> 38.33333333 | O35: =RANK(N35,$N$32:$N$47) -> 4 | P35: =RANK(N35,$N$25:$N$52) -> 7
B36: 229 | C36: Stephen Smith | E36: U16 | F36: 29 | G36: 29 | H36: 29 | I36: =(F36+G36+H36)/$N$6 -> 29 | J36: 36 | K36: 35 | L36: 36 | M36: =(J36+K36+L36)/$N$6 -> 35.66666667 | N36: =MAX(I36,M36) -> 35.66666667 | O36: =RANK(N36,$N$32:$N$47) -> 5 | P36: =RANK(N36,$N$25:$N$52) -> 8
B37: 224 | C37: Liam Tynan | E37: U16 | F37: 7 | G37: 8 | H37: 7 | I37: =(F37+G37+H37)/$N$6 -> 7.333333333 | J37: 31 | K37: 31 | L37: 30 | M37: =(J37+K37+L37)/$N$6 -> 30.66666667 | N37: =MAX(I37,M37) -> 30.66666667 | O37: =RANK(N37,$N$32:$N$47) -> 6 | P37: =RANK(N37,$N$25:$N$52) -> 9
B38: 233 | C38: William Ashworth | E38: U16 | F38: 24 | G38: 25 | H38: 27 | I38: =(F38+G38+H38)/$N$6 -> 25.33333333 | J38: 15 | K38: 15 | L38: 14 | M38: =(J38+K38+L38)/$N$6 -> 14.66666667 | N38: =MAX(I38,M38) -> 25.33333333 | O38: =RANK(N38,$N$32:$N$47) -> 7 | P38: =RANK(N38,$N$25:$N$52) -> 10
B39: 211 | C39: Nate Hopkinson | E39: U16 | F39: 23 | G39: 24 | H39: 24 | I39: =(F39+G39+H39)/$N$6 -> 23.66666667 | J39: 19 | K39: 20 | L39: 17 | M39: =(J39+K39+L39)/$N$6 -> 18.66666667 | N39: =MAX(I39,M39) -> 23.66666667 | O39: =RANK(N39,$N$32:$N$47) -> 8 | P39: =RANK(N39,$N$25:$N$52) -> 11
B40: 330 | C40: Stephen French | E40: U16 | F40: 20 | G40: 23 | H40: 22 | I40: =(F40+G40+H40)/$N$6 -> 21.66666667 | J40: 7 | K40: 8 | L40: 4 | M40: =(J40+K40+L40)/$N$6 -> 6.333333333 | N40: =MAX(I40,M40) -> 21.66666667 | O40: =RANK(N40,$N$32:$N$47) -> 9 | P40: =RANK(N40,$N$25:$N$52) -> 12
B41: 206 | C41: Christie Fierman | E41: U16 | F41: 16 | G41: 14 | H41: 13 | I41: =(F41+G41+H41)/$N$6 -> 14.33333333 | J41: 20 | K41: 20 | L41: 20 | M41: =(J41+K41+L41)/$N$6 -> 20 | N41: =MAX(I41,M41) -> 20 | O41: =RANK(N41,$N$32:$N$47) -> 10 | P41: =RANK(N41,$N$25:$N$52) -> 14
B42: 217 | C42: William Kennerley | E42: U16 | F42: 19 | G42: 20 | H42: 20 | I42: =(F42+G42+H42)/$N$6 -> 19.66666667 | J42: 7 | K42: 9 | L42: 4 | M42: =(J42+K42+L42)/$N$6 -> 6.666666667 | N42: =MAX(I42,M42) -> 19.66666667 | O42: =RANK(N42,$N$32:$N$47) -> 11 | P42: =RANK(N42,$N$25:$N$52) -> 16
B43: 210 | C43: Jonny Cresswell | E43: U16 | F43: 18 | G43: 18 | H43: 18 | I43: =(F43+G43+H43)/$N$6 -> 18 | J43: 11 | K43: 10 | L43: 10 | M43: =(J43+K43+L43)/$N$6 -> 10.33333333 | N43: =MAX(I43,M43) -> 18 | O43: =RANK(N43,$N$32:$N$47) -> 12 | P43: =RANK(N43,$N$25:$N$52) -> 17
B44: 226 | C44: Hayden Harvey-Smith | E44: U16 | F44: 10 | G44: 12 | H44: 11 | I44: =(F44+G44+H44)/$N$6 -> 11 | J44: 14 | K44: 14 | L44: 15 | M44: =(J44+K44+L44)/$N$6 -> 14.33333333 | N44: =MAX(I44,M44) -> 14.33333333 | O44: =RANK(N44,$N$32:$N$47) -> 13 | P44: =RANK(N44,$N$25:$N$52) -> 20
C45: Leon Drynan | E45: U16 | I45: =(F45+G45+H45)/$N$6 -> 0 | M45: =(J45+K45+L45)/$N$6 -> 0 | N45: =MAX(I45,M45) -> 0 | O45: =RANK(N45,$N$32:$N$47) -> 14 | P45: =RANK(N45,$N$25:$N$52) -> 26
C46: Harvey Goode | E46: U16 | I46: =(F46+G46+H46)/$N$6 -> 0 | M46: =(J46+K46+L46)/$N$6 -> 0 | N46: =MAX(I46,M46) -> 0 | O46: =RANK(N46,$N$32:$N$47) -> 14 | P46: =RANK(N46,$N$25:$N$52) -> 26
C47: Sam Dunn | E47: U16 | I47: =(F47+G47+H47)/$N$6 -> 0 | M47: =(J47+K47+L47)/$N$6 -> 0 | N47: =MAX(I47,M47) -> 0 | O47: =RANK(N47,$N$32:$N$47) -> 14 | P47: =RANK(N47,$N$25:$N$52) -> 26
B48: 230 | C48: Josh Cook | E48: U21 | F48: 8 | G48: 9 | H48: 5 | I48: =(F48+G48+H48)/$N$6 -> 7.333333333 | J48: 77 | K48: 75 | L48: 77 | M48: =(J48+K48+L48)/$N$6 -> 76.33333333 | N48: =MAX(I48,M48) -> 76.33333333 | O48: =RANK(N48,$N$48:$N$50) -> 1 | P48: =RANK(N48,$N$25:$N$52) -> 1
B49: 212 | C49: Billy Cockrell | E49: U21 | F49: 13 | G49: 14 | H49: 13 | I49: =(F49+G49+H49)/$N$6 -> 13.33333333 | J49: 75 | K49: 72 | L49: 73 | M49: =(J49+K49+L49)/$N$6 -> 73.33333333 | N49: =MAX(I49,M49) -> 73.33333333 | O49: =RANK(N49,$N$48:$N$50) -> 2 | P49: =RANK(N49,$N$25:$N$52) -> 2
B50: 232 | C50: Harvey Causer | E50: U21 | F50: 4 | G50: 5 | H50: 5 | I50: =(F50+G50+H50)/$N$6 -> 4.666666667 | J50: 53 | K50: 50 | L50: 56 | M50: =(J50+K50+L50)/$N$6 -> 53 | N50: =MAX(I50,M50) -> 53 | O50: =RANK(N50,$N$48:$N$50) -> 3 | P50: =RANK(N50,$N$25:$N$52) -> 4
B51: 207 | C51: Matt Savage | E51: Masters | F51: 10 | G51: 10 | H51: 10 | I51: =(F51+G51+H51)/$N$6 -> 10 | J51: 6 | K51: 3 | L51: 4 | M51: =(J51+K51+L51)/$N$6 -> 4.333333333 | N51: =MAX(I51,M51) -> 10 | O51: =RANK(N51,$N$51:$N$52) -> 1 | P51: =RANK(N51,$N$25:$N$52) -> 22
B52: 228 | C52: Jeffery Thompson | E52: Masters | F52: 4 | G52: 4 | H52: 2 | I52: =(F52+G52+H52)/$N$6 -> 3.333333333 | J52: 5 | K52: 6 | L52: 6 | M52: =(J52+K52+L52)/$N$6 -> 5.666666667 | N52: =MAX(I52,M52) -> 5.666666667 | O52: =RANK(N52,$N$51:$N$52) -> 2 | P52: =RANK(N52,$N$25:$N$52) -> 24
C80: Leon Drynan | E80: U16 | I80: =(F80+G80+H80)/$N$6 -> 0 | M80: =(J80+K80+L80)/$N$6 -> 0 | N80: =MAX(I80,M80) -> 0 | O80: =RANK(N80,$N$32:$N$47) -> 14 | P80: =RANK(N80,$N$25:$N$52) -> 26
C81: Harvey Goode | E81: U16 | I81: =(F81+G81+H81)/$N$6 -> 0 | M81: =(J81+K81+L81)/$N$6 -> 0 | N81: =MAX(I81,M81) -> 0 | O81: =RANK(N81,$N$32:$N$47) -> 14 | P81: =RANK(N81,$N$25:$N$52) -> 26
C82: Sam Dunn | E82: U16 | I82: =(F82+G82+H82)/$N$6 -> 0 | M82: =(J82+K82+L82)/$N$6 -> 0 | N82: =MAX(I82,M82) -> 0 | O82: =RANK(N82,$N$32:$N$47) -> 14 | P82: =RANK(N82,$N$25:$N$52) -> 26

Sheet SB Female
M2: Judges
M3: Judge 1 | N3: Calum Paton
M4: Judge 2 | N4: Gareth Vogan
B5: Snowboard Female | M5: Judge 3 | N5: Conor Browne
M6: No of Judges: | N6: 3
B7: Finals | F7: Run 1 | I7: Run 1 | J7: Run 2 | M7: Run 2 | N7: Best | O7: Position
B8: Bib | C8: Name | D8: Stance | E8: Category | F8: Judge 1 | G8: Judge 2 | H8: Judge 3 | I8: Average | J8: Judge 1 | K8: Judge2 | L8: Judge3 | M8: Average | N8: Score | O8: Age | P8: Overall
A9: 2 | B9: 202 | C9: Cerys Allen | E9: U21 | F9: 25 | G9: 25 | H9: 27 | I9: =(F9+G9+H9)/$N$6 -> 25.66666667 | J9: 62 | K9: 61 | L9: 63 | M9: =(J9+K9+L9)/$N$6 -> 62 | N9: =MAX(I9,M9) -> 62 | P9: =RANK(N9,$N$9:$N$14) -> 1
A10: 4 | B10: 222 | C10: Jade Walsh | E10: U16 | F10: 61 | G10: 60 | H10: 63 | I10: 61.33333333 | J10: 42 | K10: 41 | L10: 43 | M10: 42 | N10: 61.33333333 | P10: 2
A11: 1 | B11: 215 | C11: Mia Brookes | E11: U12 | F11: 56 | G11: 57 | H11: 54 | I11: 55.66666667 | J11: 52 | K11: 54 | L11: 52 | M11: 52.66666667 | N11: 55.66666667 | P11: 3
A12: 3 | B12: 236 | C12: Sophie Smith | E12: U16 | F12: 50 | G12: 52 | H12: 52 | I12: 51.33333333 | J12: 53 | K12: 53 | L12: 53 | M12: 53 | N12: 53 | P12: 4
A13: 5 | B13: 237 | C13: Lara Cabrera Myram | E13: U16 | F13: 39 | G13: 42 | H13: 38 | I13: 39.66666667 | J13: 9 | K13: 10 | L13: 10 | M13: 9.666666667 | N13: 39.66666667 | P13: 5
A14: 6 | B14: 235 | C14: Gillian Finnerty | E14: Open | F14: 37 | G14: 40 | H14: 35 | I14: 37.33333333 | J14: 13 | K14: 11 | L14: 11 | M14: 11.66666667 | N14: 37.33333333 | P14: 6
B16: Qualifiers | F16: Run 1 | I16: Run 1 | J16: Run 2 | M16: Run 2 | N16: Best | O16: Position
B17: Bib | C17: Name | D17: Stance | E17: Category | F17: Judge 1 | G17: Judge 2 | H17: Judge 3 | I17: Average | J17: Judge 1 | K17: Judge2 | L17: Judge3 | M17: Average | N17: Score | O17: Age | P17: Overall
B18: 234 | C18: Charlee Dean | E18: U12 | F18: 20 | G18: 19 | H18: 17 | I18: =(F18+G18+H18)/$N$6 -> 18.66666667 | J18: 15 | K18: 15 | L18: 13 | M18: =(J18+K18+L18)/$N$6 -> 14.33333333 | N18: =MAX(I18,M18) -> 18.66666667 | O18: =RANK(N18,$N$18:$N$22) -> 3 | P18: =RANK(N18,$N$18:$N$30) -> 10
B19: 204 | C19: Jessica Smith | E19: U12 | F19: 5 | G19: 6 | H19: 3 | I19: 4.666666667 | J19: 16 | K19: 16 | L19: 11 | M19: 14.33333333 | N19: 14.33333333 | O19: =RANK(N19,$N$18:$N$22) -> 5 | P19: 12
B20: 231 | C20: Evie Smith | E20: U12 | F20: 19 | G20: 18 | H20: 16 | I20: 17.66666667 | J20: 17 | K20: 17 | L20: 15 | M20: 16.33333333 | N20: 17.66666667 | O20: =RANK(N20,$N$18:$N$22) -> 4 | P20: 11
B21: 201 | C21: Mae Hodgson | E21: U12 | F21: 15 | G21: 14 | H21: 14 | I21: 14.33333333 | J21: 23 | K21: 25 | L21: 25 | M21: 24.33333333 | N21: 24.33333333 | O21: =RANK(N21,$N$18:$N$22) -> 2 | P21: 7
B22: 215 | C22: Mia Brookes | E22: U12 | F22: 53 | G22: 55 | H22: 52 | I22: 53.33333333 | J22: 24 | K22: 21 | L22: 26 | M22: 23.66666667 | N22: 53.33333333 | O22: =RANK(N22,$N$18:$N$22) -> 1 | P22: 1
B23: 208 | C23: Freya Savage | E23: U16 | F23: 9 | G23: 11 | H23: 10 | I23: 10 | J23: 13 | K23: 13 | L23: 14 | M23: 13.33333333 | N23: 13.33333333 | O23: =RANK(N23,$N$23:$N$27) -> 5 | P23: 13
B24: 237 | C24: Lara Cabrera Myram | E24: U16 | F24: 36 | G24: 34 | H24: 36 | I24: 35.33333333 | J24: 8 | K24: 9 | L24: 7 | M24: 8 | N24: 35.33333333 | O24: =RANK(N24,$N$23:$N$27) -> 3 | P24: 5
B25: 200 | C25: Anya Allen | E25: U16 | F25: 19 | G25: 21 | H25: 20 | I25: 20 | J25: 14 | K25: 12 | L25: 11 | M25: 12.33333333 | N25: 20 | O25: =RANK(N25,$N$23:$N$27) -> 4 | P25: 9
B26: 236 | C26: Sophie Smith | E26: U16 | F26: 42 | G26: 43 | H26: 41 | I26: 42 | J26: 30 | K26: 30 | L26: 29 | M26: 29.66666667 | N26: 42 | O26: =RANK(N26,$N$23:$N$27) -> 1 | P26: 3
B27: 222 | C27: Jade Walsh | E27: U16 | F27: 43 | G27: 42 | H27: 40 | I27: 41.66666667 | J27: 12 | K27: 11 | L27: 11 | M27: 11.33333333 | N27: 41.66666667 | O27: =RANK(N27,$N$23:$N$27) -> 2 | P27: 4
B28: 239 | C28: Amber Cordingley | E28: U21 | F28: 14 | G28: 15 | H28: 13 | I28: 14 | J28: 21 | K28: 23 | L28: 23 | M28: 22.33333333 | N28: 22.33333333 | O28: =RANK(N28,$N$28:$N$29) -> 2 | P28: 8
B29: 202 | C29: Cerys Allen | E29: U21 | F29: 17 | G29: 17 | H29: 19 | I29: 17.66666667 | J29: 44 | K29: 43 | L29: 43 | M29: 43.33333333 | N29: 43.33333333 | O29: =RANK(N29,$N$28:$N$29) -> 1 | P29: 2
B30: 235 | C30: Gillian Finnerty | E30: Open | F30: 33 | G30: 33 | H30: 31 | I30: 32.33333333 | J30: 9 | K30: 12 | L30: 8 | M30: 9.666666667 | N30: 32.33333333 | O30: =RANK(N30,$N$30) -> 1 | P30: 6

Sheet SB Podiums
B5: Snowboard Podiums
B7: Female | I7: Male
B10: U12 | E10: U21 | H10: U12 | K10: U21
B11: 1 | C11: Mia Brookes | E11: 1 | F11: Cerys Allen | H11: 1 | I11: Lenny Fenning | K11: 1 | L11: Billy Cockrell
B12: 2 | C12: Mae Hodgson | E12: 2 | F12: Amber Cordingley | H12: 2 | I12: Rauf Allen | K12: 2 | L12: Josh Cook
B13: 3 | C13: Charlee Dean | E13: 3 | H13: 3 | I13: Oliver Cresswell | K13: 3 | L13: Harvey Causer
B15: U16 | E15: Open | H15: U16 | K15: Open
B16: 1 | C16: Jade Walsh | E16: 1 | F16: Gillian Finnerty | H16: 1 | I16: Lewis Moore | K16: 1
B17: 2 | C17: Sophie Smith | E17: 2 | H17: 2 | I17: Liam Tynan | K17: 2
B18: 3 | C18: Lara Cabrera Myram | E18: 3 | H18: 3 | I18: Max Jorge | K18: 3
B21: U18 | E21: Masters | H21: U18 | K21: Masters
B22: 1 | E22: 1 | H22: 1 | K22: 1 | L22: Matt Savage
B23: 2 | E23: 2 | H23: 2 | K23: 2 | L23: Jeffery Thompson
B24: 3 | E24: 3 | H24: 3 | K24: 3
B26: Overall | H26: Overall
B27: 1 | C27: Cerys Allen | H27: 1 | I27: Lewis Moore
B28: 2 | C28: Jade Walsh | H28: 2 | I28: Billy Cockrell
B29: 3 | C29: Mia Brookes | H29: 3 | I29: Josh Cook

Sheet Ski Podiums
B5: Ski Podiums
B7: Female | I7: Male
B10: U12 | E10: U21 | H10: U12 | K10: U21
B11: 1 | C11: Fiona Muir | H11: 1 | I11: Fynnlay Loupis | K11: 1 | L11: Chris McCormick
B12: 2 | E12: 2 | H12: 2 | I12: Palmer Parish | K12: 2 | L12: Justin Taylor-Tipton
B13: 3 | E13: 3 | H13: 3 | I13: Paulie Loupis | K13: 3 | L13: Haydyn Fiori
B15: U16 | E15: Open | H15: U16 | K15: Open
B16: 1 | C16: Kirsty Muir | E16: 1 | F16: Alexandra (Lex) Brown | H16: 1 | I16: Bradley FRY | K16: 1 | L16: Tom Smith
B17: 2 | C17: Olivia Burke | E17: 2 | H17: 2 | I17: Teddy Halket | K17: 2 | L17: Row Emery
B18: 3 | C18: Ella Taylor-Tipton | E18: 3 | H18: 3 | I18: Jay Hebblethwaite | K18: 3
B21: U18 | E21: Masters | H21: U18 | K21: Masters
B22: 1 | E22: 1 | H22: 1 | K22: 1
B23: 2 | E23: 2 | H23: 2 | K23: 2
B24: 3 | E24: 3 | H24: 3 | K24: 3
B26: Overall | H26: Overall
B27: 1 | C27: Kirsty Muir | H27: 1 | I27: Chris McCormick
B28: 2 | C28: Olivia Burke | H28: 2 | I28: Justin Taylor-Tipton
B29: 3 | C29: Alexandra (Lex) Brown | H29: 3 | I29: Haydyn Fiori
